bitfinex-derivatives/quotes_ETHF0:USTF0_20250405
["timestamp","ask_amount","ask_price","bid_price","bid_amount"]
[1743847997751,0.76915,1820.7,1820.6,2.2598]
[1743847997951,0.76915,1820.7,1820.6,3.02899]
[1743847998151,2.22965,1820.7,1820.6,2.2598]
[1743847999553,2.22965,1820.7,1820.6,3.02899]
[1743848000154,2.22965,1820.7,1820.6,2.2598]
[1743848002253,0.76919,1820.6,1820.5,3.2078]
[1743848002449,2.87839,1820.6,1820.5,3.2078]
[1743848005456,1.3979,1820.6,1820.5,3.97703]
[1743848005761,2.16709,1820.6,1820.5,3.97631923]
[1743848005951,1.3979,1820.6,1820.5,4.74554923]
[1743848006151,2.16709,1820.6,1820.5,3.97631923]
[1743848006352,1.3979,1820.6,1820.5,6.17784923]
[1743848006658,2.16709,1820.6,1820.5,5.40861923]
[1743848010860,2.16709,1820.6,1820.5,6.11871923]
[1743848011562,2.16709,1820.6,1820.5,4.68641923]
[1743848012462,2.16709,1820.6,1820.5,4.68658729]
[1743848013452,2.16709,1820.6,1820.5,1.47878729]
[1743848014463,2.16709,1820.6,1820.5,1.47868821]
[1743848015866,2.16709,1820.6,1820.5,0.7101]
[1743848016158,2.16709,1820.6,1820.5,1.47865994]
[1743848016364,2.16709,1820.6,1820.5,1.47865436]
[1743848017367,2.16709,1820.6,1820.5,0.7101]
[1743848025066,2.16709,1820.6,1820.5,2.1746]
[1743848025669,0.76917,1820.7,1820.5,2.94383]
[1743848025968,0.76917,1820.7,1820.6,1.4645]
[1743848027475,2.20987,1820.7,1820.6,1.4645]
[1743848030074,2.20987,1820.7,1820.6,2.23305027]
[1743848030878,2.20987,1820.7,1820.6,2.23308763]
[1743848032581,2.20987,1820.7,1820.6,1.4645]
[1743848032776,2.20987,1820.7,1820.6,2.2331058]
[1743848034482,2.20987,1820.7,1820.6,2.23309339]
[1743848036082,2.20987,1820.7,1820.6,1.4645]
[1743848038383,3.479,1820.7,1820.6,1.4645]
[1743848038684,4.24815,1820.7,1820.6,1.4645]
[1743848040986,0.76915,1820.7,1820.6,2.23288137]
[1743848041183,0.76915,1820.7,1820.6,1.4645]
[1743848042186,0.76915,1820.7,1820.6,2.23282178]
[1743848042791,0.76915,1820.7,1820.6,3.00201178]
[1743848042986,5.75873,1820.8,1820.6,6.20981178]
[1743848043185,5.75873,1820.8,1820.7,3.01845627]
[1743848044390,5.75873,1820.8,1820.7,2.2502]
[1743848044589,6.49693,1820.8,1820.7,2.2502]
[1743848045391,6.49693,1820.8,1820.7,0.7442]
[1743848049395,6.49693,1820.8,1820.7,1.51212431]
[1743848049396,3.01793,1820.8,1820.7,1.51212431]
[1743848050098,3.01793,1820.8,1820.7,1.51213417]
[1743848051196,3.01793,1820.8,1820.7,0.7442]
[1743848053690,0.76915,1820.7,1820.6,4.6894]
[1743848053886,2.28155,1820.7,1820.6,6.22666543]
[1743848054198,1.5124,1820.7,1820.6,6.22666543]
[1743848054395,2.28155,1820.7,1820.6,5.45747543]
[1743848054698,1.5124,1820.7,1820.6,6.22666543]
[1743848055797,1.5124,1820.7,1820.6,6.22672193]
[1743848056598,2.28155,1820.7,1820.6,6.22672193]
[1743848056991,1.5124,1820.7,1820.6,6.22672193]
[1743848057291,1.5124,1820.7,1820.6,6.22671757]
[1743848057492,2.28155,1820.7,1820.6,5.45752757]
[1743848058098,2.28155,1820.7,1820.6,2.24972757]
[1743848058396,2.28155,1820.7,1820.6,5.45752757]
[1743848058598,2.28155,1820.7,1820.6,6.22671757]
[1743848060901,2.28155,1820.7,1820.6,5.45752757]
[1743848062000,2.28155,1820.7,1820.6,6.22671757]
[1743848062301,4.98531,1820.8,1820.6,6.22671757]
[1743848062495,3.2078,1821.3,1820.7,3.62402757]
[1743848062700,0.76904,1821.0,1820.8,2.96950757]
[1743848062895,0.76904,1821.0,1820.9,2.1395]
[1743848063095,0.76904,1821.0,1820.9,2.90796863]
[1743848063797,2.26264,1821.0,1820.9,2.90796863]
[1743848064199,2.26264,1821.0,1820.9,2.1395]
[1743848064603,2.26264,1821.0,1820.9,2.90802267]
[1743848064804,2.26264,1821.0,1820.9,2.90802206]
[1743848065102,2.26264,1821.0,1820.9,2.90803686]
[1743848065306,2.26264,1821.0,1820.9,2.1395]
[1743848066113,1.4936,1821.0,1820.9,2.1395]
[1743848066306,4.2143,1821.1,1820.9,2.90796334]
[1743848066507,4.98329,1821.1,1821.0,1.479]
[1743848075011,0.76902,1821.0,1820.9,0.7072]
[1743848075207,0.76906,1820.9,1820.8,3.2078]
[1743848075607,0.76906,1820.9,1820.8,3.9221]
[1743848075910,2.26996,1820.9,1820.8,3.9221]
[1743848076604,2.26996,1820.9,1820.8,5.4239]
[1743848078513,2.26996,1820.9,1820.8,2.2161]
[1743848078813,2.26996,1820.9,1820.8,5.4239]
[1743848080314,2.26996,1820.9,1820.8,6.1923956]
[1743848083015,2.26996,1820.9,1820.8,6.19241277]
[1743848085415,2.26996,1820.9,1820.8,2.98461277]
[1743848086618,1.5009,1820.9,1820.8,2.98461277]
[1743848086822,2.26996,1820.9,1820.8,3.75371277]
[1743848087618,2.26996,1820.9,1820.8,2.98461277]
[1743848088220,0.76905,1821.0,1820.8,3.75370277]
[1743848088410,2.17275,1821.0,1820.8,2.98519]
[1743848088929,0.76906,1820.9,1820.8,2.2161]
[1743848089129,2.27786,1820.9,1820.8,2.98477209]
[1743848090230,2.27786,1820.9,1820.8,2.9848848]
[1743848092136,1.5088,1820.9,1820.8,3.7539848]
[1743848092437,2.27786,1820.9,1820.8,3.7539848]
[1743848093333,1.5088,1820.9,1820.8,3.7539848]
[1743848093831,1.5088,1820.9,1820.8,3.75397965]
[1743848095234,2.27786,1820.9,1820.8,3.75397965]
[1743848095638,2.27786,1820.9,1820.8,3.75390901]
[1743848095934,4.98331,1821.1,1820.8,2.98480901]
[1743848096127,6.50921,1821.1,1820.9,6.25343901]
[1743848096327,6.50921,1821.1,1821.0,3.67380901]
[1743848097535,6.50921,1821.1,1821.0,3.67341862]
[1743848100433,0.76892,1821.3,1821.1,0.76894]
[1743848100633,5.72102,1821.3,1821.2,0.7015]
[1743848102040,2.24502,1821.3,1821.2,0.7015]
[1743848102235,5.72102,1821.3,1821.2,0.7015]
[1743848105031,0.7691,1820.8,1820.7,3.2078]
[1743848105639,2.2677,1820.8,1820.7,3.2078]
[1743848106837,1.4986,1820.8,1820.7,3.2078]
[1743848107338,2.2677,1820.8,1820.7,4.6338]
[1743848107527,1.4986,1820.8,1820.7,4.6338]
[1743848107733,2.2677,1820.8,1820.7,4.6338]
[1743848108941,1.4986,1820.8,1820.7,4.6338]
[1743848109138,2.2677,1820.8,1820.7,5.3909]
[1743848109442,1.4986,1820.8,1820.7,5.3909]
[1743848109644,5.00469,1820.9,1820.7,6.16005]
[1743848109942,0.7691,1820.8,1820.7,3.2078]
[1743848110133,3.7497,1820.8,1820.7,3.2078]
[1743848110733,3.7497,1820.8,1820.7,3.9717288]
[1743848113335,3.7497,1820.8,1820.7,5.4540288]
[1743848115443,3.7497,1820.8,1820.7,5.45395665]
[1743848116044,3.7497,1820.8,1820.7,4.6901]
[1743848117342,3.7497,1820.8,1820.7,3.2078]
[1743848118046,2.9806,1820.8,1820.5,3.9711]
[1743848118243,0.76919,1820.6,1820.5,3.2078]
[1743848122547,0.76919,1820.6,1820.4,2.29406]
[1743848122748,1.4378,1820.5,1820.4,2.29406]
[1743848122949,1.4378,1820.5,1820.4,6.26485319]
[1743848124242,2.20703,1820.5,1820.4,6.26485319]
[1743848124547,2.20703,1820.5,1820.4,5.49559319]
[1743848125143,2.20703,1820.5,1820.4,4.7326]
[1743848125343,0.76927,1820.4,1820.3,3.21604584]
[1743848125549,3.61997,1820.4,1820.3,0.00824584]
[1743848125852,0.76944,1820.0,1819.9,3.2078]
[1743848126050,0.76944,1820.0,1819.9,3.96741779]
[1743848126243,0.76944,1820.0,1819.9,44.76741779]
[1743848126549,3.59274,1820.0,1819.9,44.76741779]
[1743848126749,3.59274,1820.0,1819.9,44.0078]
[1743848127346,0.76948,1819.9,1819.8,0.00824584]
[1743848127543,2.18868,1819.9,1819.8,0.00824584]
[1743848135653,5.39648,1819.9,1819.8,0.00824584]
[1743848137759,0.76961,1819.6,1819.5,40.8]
[1743848138459,3.66711,1819.6,1819.5,40.8]
[1743848141255,0.76965,1819.5,1819.4,0.00824584]
[1743848141455,2.28545,1819.5,1819.4,0.00824584]
[1743848144665,5.49325,1819.5,1819.4,0.00824584]
[1743848151868,1.92436,1819.3,1818.8,3.2078]
[1743848152073,3.479,1819.2,1818.8,4.68954]
[1743848152267,0.76986,1819.0,1818.9,1.4775]
[1743848152467,0.76985,1819.1,1818.9,1.4775]
[1743848152769,0.76986,1819.0,1818.9,1.4775]
[1743848152969,0.76985,1819.1,1818.9,1.4775]
[1743848153169,0.00824584,1819.1,1818.9,1.4775]
[1743848153770,0.77809584,1819.1,1818.9,1.4775]
[1743848155769,0.77809584,1819.1,1818.9,5.4552]
[1743848155969,0.77809584,1819.1,1819.0,1.4695]
[1743848156274,0.00824584,1819.1,1819.0,2.23936]
[1743848158068,0.77806584,1819.1,1819.0,2.23936]
[1743848159579,0.77806584,1819.1,1819.0,1.4695]
[1743848160676,0.77806584,1819.1,1819.0,4.6773]
[1743848161088,0.77806584,1819.1,1819.0,1.4695]
[1743848161387,0.77806584,1819.1,1819.0,4.6773]
[1743848161687,0.00824584,1819.1,1819.0,5.44716]
[1743848161888,0.77806584,1819.1,1819.0,5.44716]
[1743848162189,0.77806584,1819.1,1819.0,6.20744898]
[1743848166082,0.77806584,1819.1,1819.0,6.91904898]
[1743848166793,0.77806584,1819.1,1819.0,6.92007454]
[1743848167892,0.00824584,1819.1,1819.0,6.92007454]
[1743848168082,0.76966,1819.5,1819.0,9.42007454]
[1743848168282,0.76966,1819.5,1819.2,3.2078]
[1743848168487,3.479,1819.6,1819.4,0.76967]
[1743848168796,4.24861,1819.6,1819.5,1.5026]
[1743848171690,3.98562584,1819.7,1819.5,1.5026]
[1743848171890,6.69504584,1819.7,1819.6,1.4719]
[1743848172393,6.69504584,1819.7,1819.6,2.9195]
[1743848172594,7.46461584,1819.7,1819.6,2.9195]
[1743848174194,6.69504584,1819.7,1819.6,3.68911]
[1743848174383,6.69504584,1819.7,1819.6,2.9195]
[1743848174583,7.46461584,1819.7,1819.6,2.9195]
[1743848174788,0.00824584,1819.7,1819.6,3.68911]
[1743848175288,0.00824584,1819.7,1819.6,4.4491431]
[1743848175989,0.00824584,1819.7,1819.6,4.44904485]
[1743848176294,0.00824584,1819.7,1819.6,3.68911]
[1743848176494,0.77781584,1819.7,1819.6,2.9195]
[1743848176794,2.16041584,1819.7,1819.6,2.9195]
[1743848177294,2.16041584,1819.7,1819.6,3.68911]
[1743848177490,2.16041584,1819.7,1819.6,2.9195]
[1743848178189,2.16041584,1819.7,1819.6,3.68911]
[1743848178890,2.16041584,1819.7,1819.6,6.89691]
[1743848180694,2.16041584,1819.7,1819.6,6.1273]
[1743848181594,2.16041584,1819.7,1819.6,6.89691]
[1743848182696,2.89331584,1819.7,1819.6,6.89691]
[1743848183197,2.89331584,1819.7,1819.6,3.2078]
[1743848183395,3.58911584,1819.7,1819.6,3.2078]
[1743848184198,0.76961,1819.6,1819.5,1.50184]
[1743848184495,2.26651,1819.6,1819.5,1.50184]
[1743848184695,2.26651,1819.6,1819.5,4.70964]
[1743848185097,2.26651,1819.6,1819.5,1.50184]
[1743848185298,2.26651,1819.6,1819.5,3.94]
[1743848187500,1.4969,1819.6,1819.5,4.70965]
[1743848187689,2.26651,1819.6,1819.5,3.94]
[1743848190391,0.76976,1819.3,1819.1,4.6913]
[1743848190693,0.76976,1819.3,1819.1,6.0829]
[1743848190899,0.76976,1819.3,1819.2,42.1916]
[1743848191698,2.17066,1819.3,1819.2,42.1916]
[1743848193302,2.17066,1819.3,1819.2,45.3994]
[1743848194799,2.17066,1819.3,1819.2,3.2078]
[1743848196402,0.7661,1819.4,1819.2,3.2078]
[1743848196603,4.24767,1819.5,1819.3,3.00091197]
[1743848196604,3.478,1819.5,1819.3,3.00091197]
[1743848196804,3.478,1819.5,1819.4,2.1964]
[1743848197000,3.478,1819.5,1819.4,42.9964]
[1743848197196,3.478,1819.5,1819.4,44.52709099]
[1743848197610,4.24765,1819.5,1819.4,44.52709099]
[1743848197809,4.24765,1819.5,1819.4,43.75740099]
[1743848198310,4.24765,1819.5,1819.4,44.52709099]
[1743848198505,4.24765,1819.5,1819.4,43.75740099]
[1743848199209,3.478,1819.5,1819.4,44.52709099]
[1743848199408,3.478,1819.5,1819.4,47.73491241]
[1743848199703,2.23593,1819.6,1819.4,47.73491241]
[1743848199908,0.00824584,1819.7,1819.6,0.76961]
[1743848200109,0.00824584,1819.7,1819.6,7.025632]
[1743848200311,0.77781584,1819.7,1819.6,7.025632]
[1743848201112,0.77781584,1819.7,1819.6,6.256022]
[1743848201309,0.77781584,1819.7,1819.6,5.4951]
[1743848202707,0.77781584,1819.7,1819.6,6.26471]
[1743848203213,0.77781584,1819.7,1819.6,5.4951]
[1743848203409,0.77781584,1819.7,1819.6,2.2873]
[1743848203618,2.89161584,1819.7,1819.6,0.764]
[1743848205414,0.76961,1819.6,1819.5,1.3949]
[1743848205603,2.17951,1819.6,1819.5,2.1504]
[1743848205809,2.17951,1819.6,1819.5,2.92005]
[1743848206108,2.17951,1819.6,1819.5,3.6809593]
[1743848206614,2.17951,1819.6,1819.5,3.68107074]
[1743848208417,2.17951,1819.6,1819.5,3.68116518]
[1743848208715,2.17951,1819.6,1819.5,2.91151518]
[1743848209419,2.17951,1819.6,1819.5,2.1504]
[1743848209606,2.17951,1819.6,1819.5,0.7555]
[1743848213218,2.17951,1819.6,1819.5,1.51684432]
[1743848213518,2.17951,1819.6,1819.5,0.7555]
[1743848213719,2.17951,1819.6,1819.5,1.52515]
[1743848213921,2.17951,1819.6,1819.5,2.94105]
[1743848214720,2.19104664,1819.6,1819.5,2.94105]
[1743848214921,2.19104664,1819.6,1819.5,2.1714]
[1743848216021,2.19104664,1819.6,1819.5,2.94105]
[1743848217422,2.19104664,1819.6,1819.5,2.1714]
[1743848218024,2.19104664,1819.6,1819.5,2.94105]
[1743848219122,2.19104664,1819.6,1819.5,2.1714]
[1743848219625,2.19104664,1819.6,1819.5,2.93260287]
[1743848219918,2.19104664,1819.6,1819.5,2.1714]
[1743848221927,2.19104664,1819.6,1819.5,2.93266015]
[1743848222528,2.19104664,1819.6,1819.5,3.70231015]
[1743848224227,2.19104664,1819.6,1819.5,3.70267286]
[1743848224731,1.42143664,1819.6,1819.5,3.70267286]
[1743848225229,1.42444942,1819.6,1819.5,3.70267286]
[1743848225419,0.01454942,1819.6,1819.5,3.70267286]
[1743848225933,0.01454942,1819.6,1819.5,3.70283532]
[1743848226326,0.76942,1820.1,1819.6,0.76961]
[1743848226533,5.72742,1820.1,1819.9,0.76947]
[1743848226735,5.72742,1820.1,1820.0,2.9465]
[1743848228831,2.25042,1820.1,1820.0,2.9465]
[1743848229031,5.72742,1820.1,1820.0,2.9465]
[1743848230432,3.48524584,1820.2,1820.1,0.7694]
[1743848230635,0.00824584,1820.2,1820.1,3.04800701]
[1743848231437,0.00824584,1820.2,1820.1,3.04771674]
[1743848234232,0.00824584,1820.2,1820.1,2.2877]
[1743848236331,0.00824584,1820.2,1820.1,3.04578374]
[1743848236835,0.00824584,1820.2,1820.1,3.04558359]
[1743848238134,0.00824584,1820.2,1820.1,2.2877]
[1743848238334,0.00824584,1820.2,1820.1,3.04535669]
[1743848238644,0.00824584,1820.2,1820.1,3.04524696]
[1743848239340,0.00824584,1820.2,1820.1,2.2877]
[1743848240139,0.00824584,1820.2,1820.1,5.4955]
[1743848240732,0.00824584,1820.2,1820.1,6.25278712]
[1743848241642,0.00824584,1820.2,1820.1,47.05278712]
[1743848242341,0.00824584,1820.2,1820.1,47.05262993]
[1743848244944,0.00824584,1820.2,1820.1,46.2955]
[1743848245244,0.77760584,1820.2,1820.1,46.2955]
[1743848245444,0.77760584,1820.2,1820.1,3.9772]
[1743848245647,2.27820584,1820.2,1820.1,3.9772]
[1743848245845,2.27820584,1820.2,1820.1,0.7694]
[1743848246043,0.7694,1820.1,1819.9,3.98550584]
[1743848246240,0.7654,1820.0,1819.9,3.98550584]
[1743848246542,0.7654,1820.0,1819.9,44.78550584]
[1743848246738,2.266,1820.0,1819.9,44.78550584]
[1743848247546,2.266,1820.0,1819.9,3.98550584]
[1743848247745,3.03544,1820.0,1819.9,3.98550584]
[1743848248145,3.03544,1820.0,1819.9,3.21604584]
[1743848250451,3.06553118,1820.0,1819.9,3.21604584]
[1743848251538,3.09267131,1820.0,1819.9,3.21604584]
[1743848253146,5.59267131,1820.0,1819.9,3.21604584]
[1743848253855,0.76959,1819.7,1819.5,4.68723]
[1743848254151,2.22211,1819.6,1819.5,3.2078]
[1743848254353,2.22211,1819.6,1819.5,44.76338279]
[1743848254851,2.27934131,1819.6,1819.5,3.96338279]
[1743848256352,2.27934131,1819.6,1819.5,3.2078]
[1743848257053,0.76965,1819.5,1819.4,44.01604584]
[1743848257254,2.23275,1819.5,1819.4,44.77165929]
[1743848257450,2.23275,1819.5,1819.4,44.01604584]
[1743848257650,2.28998131,1819.5,1819.4,44.01604584]
[1743848259158,2.29289049,1819.5,1819.4,44.01604584]
[1743848260960,2.29578563,1819.5,1819.4,44.01604584]
[1743848263561,5.77278563,1819.5,1819.4,44.01604584]
[1743848263763,8.98058563,1819.5,1819.4,0.00824584]
[1743848263962,5.77278563,1819.5,1819.4,0.00824584]
[1743848269772,5.70975,1819.5,1819.4,0.00824584]
[1743848270070,5.77569915,1819.5,1819.4,0.00824584]
[1743848274671,0.06594915,1819.5,1819.4,0.77793584]
[1743848274977,0.06594915,1819.5,1819.4,2.89993584]
[1743848276769,0.06594915,1819.5,1819.4,6.10773584]
[1743848278977,0.83559915,1819.5,1819.4,6.10773584]
[1743848279177,0.83846497,1819.5,1819.4,6.10773584]
[1743848280082,0.06881497,1819.5,1819.4,6.10773584]
[1743848280472,0.83846497,1819.5,1819.4,6.10773584]
[1743848280769,2.33906497,1819.5,1819.4,6.10773584]
[1743848281477,2.33906497,1819.5,1819.4,6.86507116]
[1743848283282,2.33906497,1819.5,1819.4,6.86542327]
[1743848283471,1.56941497,1819.5,1819.4,6.86542327]
[1743848283665,0.06881497,1819.5,1819.4,6.86542327]
[1743848284878,0.83846497,1819.5,1819.4,6.86542327]
[1743848285479,0.06881497,1819.5,1819.4,6.86542327]
[1743848286581,0.83846497,1819.5,1819.4,6.86542327]
[1743848286878,2.30616497,1819.5,1819.4,6.86583764]
[1743848287080,2.30616497,1819.5,1819.4,4.74383764]
[1743848287275,3.04256497,1819.5,1819.4,0.00824584]
[1743848287579,3.78986497,1819.5,1819.4,0.00824584]
[1743848294484,6.99766497,1819.5,1819.4,0.00824584]
[1743848298487,9.49766497,1819.5,1819.4,0.00824584]
[1743848300087,9.59727267,1819.5,1819.4,0.00824584]
[1743848300786,9.49766497,1819.5,1819.4,0.00824584]
[1743848301290,6.99766497,1819.5,1819.4,0.00824584]
[1743848307399,3.78986497,1819.5,1819.4,0.00824584]
[1743848307689,6.99766497,1819.5,1819.4,0.00824584]
[1743848308090,3.78986497,1819.5,1819.4,0.00824584]
[1743848308292,6.99766497,1819.5,1819.4,0.00824584]
[1743848309495,3.78986497,1819.5,1819.4,0.00824584]
[1743848309694,6.99766497,1819.5,1819.4,0.00824584]
[1743848311886,0.76998,1818.8,1818.6,4.41106429]
[1743848312087,4.24998,1818.8,1818.7,2.1526]
[1743848312286,4.31879497,1818.8,1818.7,2.1526]
[1743848313187,4.31879497,1818.8,1818.7,2.8623]
[1743848314995,3.54881497,1818.8,1818.7,6.13229]
[1743848315389,3.54881497,1818.8,1818.7,6.82278353]
[1743848315589,4.31876497,1818.8,1818.7,6.05279353]
[1743848316091,4.31876497,1818.8,1818.7,6.81002092]
[1743848316298,4.31876497,1818.8,1818.7,6.05279353]
[1743848316899,4.31876497,1818.8,1818.7,3.55279353]
[1743848317092,4.31876497,1818.8,1818.7,4.31006478]
[1743848317297,4.31876497,1818.8,1818.7,3.55279353]
[1743848317490,4.31876497,1818.8,1818.7,4.31006035]
[1743848317898,3.54881497,1818.8,1818.7,5.08005035]
[1743848318399,4.31876497,1818.8,1818.7,5.08005035]
[1743848318698,3.54881497,1818.8,1818.7,5.08005035]
[1743848319191,4.31876497,1818.8,1818.7,5.08005035]
[1743848319593,4.31876497,1818.8,1818.7,5.07998753]
[1743848319796,4.31876497,1818.8,1818.7,4.30999753]
[1743848320805,4.31876497,1818.8,1818.7,5.07998753]
[1743848322306,4.31876497,1818.8,1818.7,4.30999753]
[1743848322505,4.31876497,1818.8,1818.7,5.07998753]
[1743848323103,4.31876497,1818.8,1818.7,5.0800008]
[1743848326703,4.31876497,1818.8,1818.7,4.32278353]
[1743848326911,4.31876497,1818.8,1818.7,5.08017838]
[1743848327710,3.54881497,1818.8,1818.7,5.08017838]
[1743848328010,4.31876497,1818.8,1818.7,5.08017838]
[1743848328512,3.54881497,1818.8,1818.7,5.0802891]
[1743848329306,0.06881497,1818.8,1818.7,5.0802891]
[1743848332212,0.83876497,1818.8,1818.7,5.0802891]
[1743848332416,0.06881497,1818.8,1818.7,5.0802891]
[1743848334214,0.06881497,1818.8,1818.7,5.08043037]
[1743848334714,0.83876497,1818.8,1818.7,5.08043037]
[1743848335016,0.83876497,1818.8,1818.7,0.69049353]
[1743848335215,1.58466497,1818.8,1818.7,0.69049353]
[1743848335608,0.76999,1818.7,1818.6,0.00824584]
[1743848335812,6.46689,1818.7,1818.6,0.00824584]
[1743848336415,6.56282434,1818.7,1818.6,0.00824584]
[1743848336609,6.56282434,1818.7,1818.6,0.74804584]
[1743848337714,6.56282434,1818.7,1818.6,2.14864584]
[1743848338607,0.09593434,1818.7,1818.6,3.67643073]
[1743848338912,0.09593434,1818.7,1818.6,4.36742765]
[1743848339515,0.09593434,1818.7,1818.6,45.16742765]
[1743848340216,0.86592434,1818.7,1818.6,45.16742765]
[1743848340818,0.09593434,1818.7,1818.6,45.16742765]
[1743848341121,0.09593434,1818.7,1818.6,45.16758234]
[1743848342724,0.86592434,1818.7,1818.6,45.16758234]
[1743848343417,0.09593434,1818.7,1818.6,45.16758234]
[1743848344122,0.86592434,1818.7,1818.6,45.16758234]
[1743848344422,0.09593434,1818.7,1818.6,45.16758234]
[1743848345026,0.86592434,1818.7,1818.6,45.16758234]
[1743848345217,2.36122434,1818.7,1818.6,45.16758234]
[1743848345415,2.36122434,1818.7,1818.6,44.39755234]
[1743848345817,2.36122434,1818.7,1818.6,45.16758234]
[1743848346519,1.59123434,1818.7,1818.6,4.66495234]
[1743848346722,1.59123434,1818.7,1818.6,5.43498234]
[1743848347115,1.59123434,1818.7,1818.6,47.69288234]
[1743848347328,2.36122434,1818.7,1818.6,47.69288234]
[1743848347925,2.36122434,1818.7,1818.6,47.69330486]
[1743848348724,1.59123434,1818.7,1818.6,47.69330486]
[1743848348929,0.09593434,1818.7,1818.6,47.69330486]
[1743848349826,0.09593434,1818.7,1818.6,47.69332205]
[1743848350726,0.86592434,1818.7,1818.6,47.69332205]
[1743848350926,1.50363434,1818.7,1818.6,47.69332205]
[1743848351827,1.50363434,1818.7,1818.6,47.69334731]
[1743848352320,2.27362434,1818.7,1818.6,46.92331731]
[1743848352527,2.27362434,1818.7,1818.6,4.66541731]
[1743848352727,3.02612434,1818.7,1818.6,4.66541731]
[1743848355335,3.02612434,1818.7,1818.6,4.66545625]
[1743848357037,3.02612434,1818.7,1818.6,4.66546625]
[1743848357337,3.02612434,1818.7,1818.6,1.45766625]
[1743848357737,3.02612434,1818.7,1818.6,4.66546625]
[1743848360642,3.02612434,1818.7,1818.6,4.66554504]
[1743848363440,3.02612434,1818.7,1818.6,1.45774504]
[1743848363642,3.02612434,1818.7,1818.6,4.66554504]
[1743848366141,3.02612434,1818.7,1818.6,4.66580192]
[1743848367942,3.02612434,1818.7,1818.6,4.6657618]
[1743848369743,3.02612434,1818.7,1818.6,4.66582346]
[1743848370242,3.02612434,1818.7,1818.6,3.90704276]
[1743848371944,3.02612434,1818.7,1818.6,4.66570151]
[1743848373445,3.02612434,1818.7,1818.6,4.66563833]
[1743848374145,3.02612434,1818.7,1818.6,4.66560593]
[1743848374444,3.02612434,1818.7,1818.6,1.45780593]
[1743848374743,3.02612434,1818.7,1818.6,4.66560593]
[1743848375134,3.02612434,1818.7,1818.6,4.66557036]
[1743848375445,3.02612434,1818.7,1818.6,0.69924276]
[1743848375637,3.02612434,1818.7,1818.6,0.00824584]
[1743848389248,5.52612434,1818.7,1818.6,0.00824584]
[1743848389748,5.62577265,1818.7,1818.6,0.00824584]
[1743848391743,8.83357265,1818.7,1818.6,0.00824584]
[1743848392255,8.83357496,1818.7,1818.6,0.00824584]
[1743848393857,8.83357496,1818.7,1818.6,5.84e-06]
[1743848394154,8.8335736,1818.7,1818.6,5.84e-06]
[1743848395549,8.83357566,1818.7,1818.6,5.84e-06]
[1743848396158,6.33357566,1818.7,1818.6,5.84e-06]
[1743848396453,9.81357566,1818.7,1818.6,5.84e-06]
[1743848397258,9.81357572,1818.7,1818.6,5.84e-06]
[1743848397861,9.71392434,1818.7,1818.6,5.84e-06]
[1743848398046,9.81357706,1818.7,1818.6,5.84e-06]
[1743848398958,9.71392434,1818.7,1818.6,5.84e-06]
[1743848399254,9.81357694,1818.7,1818.6,5.84e-06]
[1743848399554,6.60577694,1818.7,1818.6,5.84e-06]
[1743848399757,9.81357694,1818.7,1818.6,5.84e-06]
[1743848400652,9.71392434,1818.7,1818.6,5.84e-06]
[1743848400858,9.81357696,1818.7,1818.6,5.84e-06]
[1743848402461,9.81357537,1818.7,1818.6,5.84e-06]
[1743848402954,9.81357544,1818.7,1818.6,5.84e-06]
[1743848405460,9.81357601,1818.7,1818.6,5.84e-06]
[1743848405957,0.77016,1818.3,1818.2,0.6958]
[1743848406162,4.25016,1818.3,1818.2,0.6958]
[1743848406363,4.34609434,1818.3,1818.2,0.6958]
[1743848406762,5.87159434,1818.3,1818.2,0.6958]
[1743848406960,5.87159434,1818.3,1818.2,2.136]
[1743848410568,5.87159434,1818.3,1818.2,0.6958]
[1743848411565,0.7702,1818.2,1818.1,0.76454584]
[1743848411766,2.1983,1818.2,1818.1,0.75564584]
[1743848412458,2.29423434,1818.2,1818.1,0.75564584]
[1743848415665,2.29423434,1818.2,1818.1,1.50214584]
[1743848419571,0.86613434,1818.2,1818.1,1.50214584]
[1743848424668,2.34243434,1818.2,1818.1,1.50214584]
[1743848424865,5.55023434,1818.2,1818.1,1.50214584]
[1743848425272,2.34243434,1818.2,1818.1,1.50214584]
[1743848434273,3.04203434,1818.2,1818.1,0.00824584]
[1743848436975,3.14170995,1818.2,1818.1,0.00824584]
[1743848437272,3.04203434,1818.2,1818.1,0.00824584]
[1743848437573,3.1417098,1818.2,1818.1,0.00824584]
[1743848439077,3.04203434,1818.2,1818.1,0.00824584]
[1743848439371,3.14171315,1818.2,1818.1,0.00824584]
[1743848440780,3.1417165,1818.2,1818.1,0.00824584]
[1743848441382,0.77033,1817.9,1817.8,1.4911]
[1743848441574,5.40585,1817.9,1817.3,3.2078]
[1743848441775,0.7705,1817.5,1817.4,2.88121042]
[1743848441977,4.2505,1817.5,1817.4,3.59231042]
[1743848442479,4.34643434,1817.5,1817.4,3.59231042]
[1743848443779,4.34643434,1817.5,1817.4,2.8339]
[1743848445679,0.86643434,1817.5,1817.4,5.3339]
[1743848445982,4.34643434,1817.5,1817.4,3.59147614]
[1743848446180,4.34643434,1817.5,1817.4,2.8339]
[1743848452889,0.09593434,1817.5,1817.4,2.8339]
[1743848453088,4.34743434,1817.5,1817.4,2.8339]
[1743848456290,0.86643434,1817.5,1817.4,2.8339]
[1743848456590,4.34743434,1817.5,1817.4,2.8339]
[1743848461388,4.34743434,1817.5,1817.4,3.59188819]
[1743848461686,4.34743434,1817.5,1817.4,2.8339]
[1743848463296,4.34743434,1817.5,1817.4,3.59223045]
[1743848463494,4.34743434,1817.5,1817.4,2.8339]
[1743848464292,4.34743434,1817.5,1817.4,3.59222598]
[1743848466296,4.34743434,1817.5,1817.4,3.59239021]
[1743848466893,4.34743434,1817.5,1817.4,3.59252186]
[1743848471301,4.34743434,1817.5,1817.4,2.8339]
[1743848472508,4.34743434,1817.5,1817.4,3.59334473]
[1743848472801,4.34743434,1817.5,1817.4,2.8339]
[1743848473408,4.34743434,1817.5,1817.4,3.59328184]
[1743848474109,4.34743434,1817.5,1817.4,2.8339]
[1743848474308,4.34743434,1817.5,1817.4,3.59324255]
[1743848474505,4.34743434,1817.5,1817.4,2.8339]
[1743848474701,4.34743434,1817.5,1817.4,3.5932427]
[1743848475711,4.34743434,1817.5,1817.4,6.8010427]
[1743848476109,0.86643434,1817.5,1817.4,6.8010427]
[1743848476303,0.00824584,1817.6,1817.4,9.3010427]
[1743848476500,0.00824584,1817.6,1817.5,3.57463464]